bitfinex/quotes_SOLUSD_20230111
["timestamp","ask_amount","ask_price","bid_price","bid_amount"]
[1673456454378,20.0,15.368,15.355,17.0]
[1673456454593,48.82,15.367,15.355,17.0]
[1673456454818,48.82,15.367,15.356,48.85]
[1673456455241,48.82,15.367,15.355,48.85]
[1673456455435,48.82,15.367,15.356,17.0]
[1673456456602,48.82,15.367,15.356,37.0]
[1673456457751,48.82,15.367,15.357,20.0]
[1673456458928,48.82,15.367,15.357,68.85]
[1673456459325,20.0,15.368,15.357,20.0]
[1673456459557,20.0,15.368,15.358,48.84]
[1673456459871,20.0,15.369,15.358,48.84]
[1673456460082,68.81,15.369,15.359,20.0]
[1673456462393,68.81,15.369,15.36,17.0]
[1673456463346,20.0,15.369,15.358,20.0]
[1673456463544,68.81,15.369,15.358,20.0]
[1673456464294,68.81,15.369,15.357,128.183]
[1673456464496,1.92,15.368,15.357,128.183]
[1673456465019,48.82,15.367,15.358,20.0]
[1673456465422,20.0,15.369,15.358,20.0]
[1673456465636,20.0,15.369,15.358,68.84]
[1673456465840,29.18,15.37,15.358,68.84]
[1673456466169,20.0,15.369,15.358,68.84]
[1673456466382,20.0,15.369,15.358,20.0]
[1673456466708,20.0,15.369,15.358,68.84]
[1673456466911,20.0,15.369,15.359,17.0]
[1673456467128,68.81,15.369,15.36,20.0]
[1673456467534,28.98,15.37,15.361,65.83]
[1673456467751,48.79,15.374,15.361,65.83]
[1673456467955,48.79,15.374,15.362,21.92]
[1673456468167,19.14496728,15.378,15.362,21.92]
[1673456468383,19.14496728,15.378,15.363,17.0]
[1673456468704,48.78,15.377,15.363,17.0]
[1673456468890,48.78,15.377,15.364,114.5747]
[1673456469104,67.92496728,15.377,15.365,20.0]
[1673456469313,48.78,15.377,15.365,20.0]
[1673456469530,48.78,15.379,15.366,48.82]
[1673456469747,20.0,15.378,15.366,48.82]
[1673456470168,48.78,15.377,15.366,48.82]
[1673456470692,48.78,15.377,15.367,20.0]
[1673456470901,48.78,15.377,15.368,17.0]
[1673456471304,20.0,15.378,15.369,20.0]
[1673456471513,20.0,15.378,15.37,17.0]
[1673456472168,28.67,15.38,15.37,17.0]
[1673456472375,28.67,15.38,15.371,49.76]
[1673456472583,19.14496728,15.387,15.371,48.8]
[1673456472783,48.76,15.384,15.372,20.0]
[1673456472993,48.76,15.386,15.372,20.0]
[1673456473198,28.67,15.38,15.367,20.0]
[1673456473533,20.0,15.379,15.367,20.0]
[1673456473852,68.78,15.379,15.367,20.0]
[1673456474041,0.96,15.378,15.367,20.0]
[1673456474577,48.78,15.377,15.367,20.0]
[1673456474775,48.78,15.379,15.368,1.92]
[1673456474987,28.67,15.38,15.369,20.0]
[1673456475204,28.67,15.38,15.37,0.96]
[1673456475439,1.56496728,15.388,15.371,20.0]
[1673456475625,28.88,15.38,15.372,119.092]
[1673456476043,28.88,15.38,15.373,68.8]
[1673456476247,28.88,15.38,15.373,20.0]
[1673456481831,28.88,15.38,15.374,17.0]
[1673456482148,48.75,15.387,15.374,17.0]
[1673456482357,21.92,15.386,15.375,20.0]
[1673456482794,48.76,15.385,15.375,20.0]
[1673456483505,68.75,15.387,15.376,48.79]
[1673456484583,68.75,15.387,15.377,20.0]
[1673456485529,20.0,15.387,15.377,20.0]
[1673456486706,29.1,15.39,15.378,20.0]
[1673456486889,29.1,15.39,15.379,21.92]
[1673456487298,29.1,15.39,15.38,48.77]
[1673456487507,29.1,15.39,15.381,1.92]
[1673456487838,29.1,15.39,15.381,21.92]
[1673456488451,29.1,15.39,15.38,48.77]
[1673456488656,48.75,15.389,15.377,68.78]
[1673456489711,29.1,15.39,15.377,68.78]
[1673456489923,29.1,15.39,15.378,18.92]
[1673456490132,20.0,15.389,15.377,68.78]
[1673456490354,68.75,15.389,15.377,68.78]
[1673456491508,20.0,15.389,15.378,1.92]
[1673456491713,29.1,15.39,15.378,1.92]
[1673456491941,48.73,15.394,15.379,48.78]
[1673456492139,48.73,15.394,15.38,1.92]
[1673456492343,48.73,15.394,15.381,109.2405]
[1673456492555,43.19124366,15.395,15.382,21.92]
[1673456492984,43.19124366,15.395,15.383,48.76]
[1673456493312,43.19124366,15.395,15.384,21.92]
[1673456493525,48.71,15.399,15.384,21.92]
[1673456493734,20.0,15.398,15.386,20.0]
[1673456493925,20.0,15.398,15.385,48.76]
[1673456494134,48.72,15.397,15.386,17.0]
[1673456494344,20.0,15.396,15.386,17.0]
[1673456494566,20.0,15.396,15.384,135.2851]
[1673456494874,48.73,15.395,15.385,17.0]
[1673456495207,68.72,15.396,15.386,21.92]
[1673456495929,68.72,15.396,15.387,17.0]
[1673456496138,20.0,15.396,15.388,1.92]
[1673456496552,20.0,15.396,15.388,21.92]
[1673456496775,20.0,15.398,15.388,21.92]
[1673456498444,20.0,15.398,15.389,48.75]
[1673456498654,20.0,15.399,15.39,1.92]
[1673456498879,20.0,15.399,15.389,48.75]
[1673456499198,68.71,15.399,15.388,20.0]
[1673456500139,20.0,15.399,15.389,1.92]
[1673456500348,68.71,15.399,15.389,1.92]
[1673456500668,20.0,15.399,15.389,1.92]
[1673456500889,20.0,15.399,15.39,20.0]
[1673456501193,29.1,15.4,15.391,1.92]
[1673456501746,77.81,15.4,15.391,1.92]
[1673456501913,29.1,15.4,15.391,1.92]
[1673456502664,29.1,15.4,15.39,20.0]
[1673456503273,29.1,15.4,15.389,166.7136]
[1673456503274,29.1,15.4,15.389,48.75]
[1673456503482,68.71,15.399,15.386,68.76]
[1673456503712,20.0,15.399,15.386,68.76]
[1673456504739,29.1,15.4,15.387,1.92]
[1673456504971,48.7,15.404,15.387,1.92]
[1673456505184,48.7,15.404,15.388,48.75]
[1673456505376,48.7,15.404,15.39,20.0]
[1673456505606,48.7,15.404,15.391,114.3129]
[1673456505809,48.7,15.404,15.392,20.0]
[1673456506020,48.7,15.404,15.392,135.9383]
[1673456506232,48.7,15.404,15.393,18.92]
[1673456506655,48.69,15.407,15.393,18.92]
[1673456506860,48.7,15.403,15.393,18.92]
[1673456507076,48.69,15.407,15.393,18.92]
[1673456507301,48.69,15.405,15.393,18.92]
[1673456507513,39.44724366,15.407,15.393,18.92]
[1673456507698,48.69,15.405,15.393,18.92]
[1673456507917,68.69,15.406,15.393,18.92]
[1673456508357,68.69,15.406,15.393,67.65]
[1673456508564,68.69,15.406,15.394,20.0]
[1673456508779,68.69,15.406,15.395,0.96]
[1673456508969,68.69,15.406,15.393,50.65]
[1673456509382,1.92,15.405,15.392,135.9383]
[1673456509706,68.69,15.406,15.393,1.92]
[1673456509916,48.7,15.404,15.393,50.65]
[1673456510131,48.69,15.405,15.393,1.92]
[1673456510339,20.0,15.406,15.395,20.0]
[1673456510548,20.0,15.409,15.396,1.92]
[1673456510758,20.0,15.409,15.396,50.64]
[1673456510975,48.69,15.408,15.397,20.0]
[1673456511294,20.0,15.407,15.396,48.72]
[1673456511486,20.0,15.406,15.394,48.73]
[1673456511822,68.69,15.406,15.392,164.6783]
[1673456512347,48.69,15.406,15.392,164.6783]
[1673456512990,48.69,15.406,15.393,21.92]
[1673456513815,0.96,15.405,15.392,164.6783]
[1673456514020,48.69,15.406,15.392,115.9383]
[1673456514216,48.69,15.406,15.393,20.0]
[1673456514423,48.69,15.406,15.393,68.73]
[1673456515072,20.0,15.407,15.393,68.73]
[1673456515393,20.0,15.408,15.394,1.92]
[1673456515812,20.0,15.408,15.395,48.73]
[1673456516132,20.0,15.408,15.396,1.92]
[1673456516443,48.69,15.407,15.396,21.92]
[1673456516631,20.0,15.408,15.397,48.72]
[1673456516632,20.0,15.406,15.397,48.72]
[1673456516865,20.0,15.408,15.398,1.92]
[1673456517285,20.0,15.408,15.398,21.92]
[1673456518352,48.69,15.407,15.397,48.72]
[1673456518569,20.0,15.406,15.397,48.72]
[1673456519196,20.0,15.408,15.397,48.72]
[1673456519708,20.0,15.408,15.398,1.92]
[1673456520335,20.0,15.408,15.397,48.72]
[1673456520551,20.0,15.408,15.393,20.0]
[1673456520552,48.69,15.407,15.394,48.73]
[1673456520762,20.0,15.405,15.392,115.9383]
[1673456520982,28.67,15.4,15.392,115.9383]
[1673456522122,28.67,15.4,15.386,48.76]
[1673456522123,68.71,15.399,15.386,48.76]
[1673456522554,87.85496728,15.399,15.385,48.76]
[1673456522762,0.96,15.398,15.384,184.0451]
[1673456522962,0.96,15.398,15.384,135.2851]
[1673456522963,21.06496728,15.398,15.384,135.2851]
[1673456523171,68.72,15.397,15.384,135.2851]
[1673456523815,68.72,15.397,15.385,48.76]
[1673456524013,68.72,15.397,15.386,20.0]
[1673456524243,68.72,15.397,15.387,1.92]
[1673456524432,20.0,15.397,15.387,1.92]
[1673456524657,20.0,15.397,15.388,20.0]
[1673456525086,20.0,15.398,15.388,20.0]
[1673456526010,20.0,15.398,15.389,17.0]
[1673456526428,20.0,15.398,15.39,1.92]
[1673456527909,48.7,15.402,15.39,1.92]
[1673456528121,48.69,15.405,15.391,48.74]
[1673456528337,19.14496728,15.407,15.393,20.0]
[1673456528535,90.50256954,15.408,15.393,20.0]
[1673456528536,48.7,15.404,15.393,20.0]
[1673456528745,41.81256954,15.408,15.393,20.0]
[1673456528746,90.50256954,15.408,15.394,50.65]
[1673456528956,20.0,15.407,15.395,20.0]
[1673456529296,20.0,15.407,15.396,1.92]
[1673456529478,20.0,15.408,15.396,67.64]
[1673456529689,20.0,15.408,15.397,20.0]
[1673456529899,20.0,15.408,15.398,1.92]
[1673456530341,20.0,15.408,15.398,18.92]
[1673456532649,20.0,15.408,15.393,20.0]
[1673456532650,68.69,15.407,15.385,20.0]
[1673456532858,28.66,15.4,15.385,20.0]
[1673456533264,28.66,15.4,15.387,48.75]
[1673456533710,20.0,15.399,15.387,48.75]
[1673456534015,68.71,15.399,15.387,48.75]
[1673456534334,68.71,15.399,15.388,20.0]
[1673456534751,28.65,15.4,15.389,48.75]
[1673456534953,48.69,15.405,15.39,20.0]
[1673456535164,48.68,15.409,15.39,132.3222]
[1673456535372,48.7,15.404,15.391,48.74]
[1673456535576,48.69,15.408,15.393,20.0]
[1673456536000,48.69,15.408,15.394,0.96]
[1673456536211,20.0,15.407,15.395,0.96]
[1673456536755,48.69,15.406,15.396,0.96]
[1673456538307,48.69,15.406,15.396,17.96]
[1673456540517,48.69,15.406,15.396,17.0]
[1673456540727,68.69,15.407,15.396,17.0]
[1673456540952,68.69,15.407,15.397,1.92]
[1673456541163,68.69,15.407,15.397,21.92]
[1673456541473,20.0,15.407,15.397,21.92]
[1673456541685,20.0,15.407,15.398,17.0]
[1673456543658,68.69,15.407,15.393,68.73]
[1673456543872,28.66,15.4,15.389,48.75]
[1673456544098,28.66,15.4,15.388,20.0]
[1673456544421,28.66,15.4,15.39,20.0]
[1673456545571,28.66,15.4,15.389,48.75]
[1673456545780,28.66,15.4,15.384,135.2851]
[1673456545781,87.85496728,15.399,15.386,68.76]
[1673456545972,87.85496728,15.399,15.386,20.0]
[1673456546623,1.92,15.398,15.386,20.0]
[1673456547229,48.72,15.397,15.386,20.0]
[1673456547464,20.0,15.396,15.386,20.0]
[1673456547883,48.73,15.395,15.386,20.0]
[1673456550815,48.73,15.395,15.387,17.0]
[1673456560831,20.0,15.396,15.387,17.0]
[1673456561026,20.0,15.398,15.387,17.0]
[1673456561233,48.73,15.395,15.387,17.0]
[1673456561447,48.72,15.397,15.387,17.0]
[1673456561659,20.0,15.396,15.387,17.0]
[1673456562491,48.73,15.395,15.386,20.0]
[1673456563880,48.73,15.395,15.387,17.0]
[1673456570293,48.73,15.395,15.388,1.92]
[1673456571138,20.0,15.396,15.388,1.92]
[1673456571358,20.0,15.398,15.388,1.92]
[1673456571987,48.72,15.397,15.388,0.96]
[1673456572183,20.0,15.396,15.387,17.0]
[1673456572389,20.0,15.396,15.388,1.92]
[1673456572824,20.0,15.398,15.388,1.92]
[1673456573037,20.0,15.398,15.388,21.92]
[1673456573242,48.72,15.397,15.388,21.92]
[1673456573561,493.2264,15.406,15.388,21.92]
[1673456573562,48.7,15.405,15.389,48.75]
[1673456573776,48.7,15.405,15.39,21.92]
[1673456573986,68.69,15.407,15.39,21.92]
[1673456574198,48.7,15.404,15.391,48.74]
[1673456574386,48.69,15.406,15.393,20.0]
[1673456574595,48.69,15.406,15.394,18.92]
[1673456574806,48.69,15.406,15.395,20.0]
[1673456575029,48.69,15.406,15.396,1.92]
[1673456575349,48.68,15.409,15.395,68.73]
[1673456575755,90.48563621,15.409,15.395,68.73]
[1673456576175,1.92,15.408,15.395,68.73]
[1673456576385,20.0,15.408,15.396,1.92]
[1673456576597,48.69,15.407,15.396,18.92]
[1673456576835,50.61,15.407,15.396,17.0]
[1673456577021,20.0,15.406,15.396,17.0]
[1673456579244,20.0,15.406,15.397,1.92]
[1673456579552,20.0,15.406,15.397,21.92]
[1673456580385,20.0,15.406,15.398,17.0]
[1673456580582,20.0,15.407,15.398,17.0]
[1673456581230,20.0,15.407,15.399,1.92]
[1673456581634,20.0,15.407,15.399,21.92]
[1673456582802,20.0,15.407,15.4,17.0]
[1673456583340,20.0,15.408,15.4,17.0]
[1673456586381,20.0,15.409,15.4,17.0]
[1673456586794,20.0,15.409,15.401,1.92]
[1673456587331,20.0,15.409,15.4,17.0]
[1673456587644,68.68,15.409,15.4,17.0]
[1673456588154,20.0,15.409,15.4,17.0]
[1673456588364,68.68,15.409,15.4,17.0]
[1673456588795,68.68,15.409,15.401,1.92]
[1673456589001,19.15,15.41,15.401,50.63]
[1673456589322,19.15,15.41,15.402,20.0]
[1673456589961,19.15,15.41,15.403,17.0]
[1673456590569,48.68,15.409,15.394,48.73]
[1673456590789,89.74496728,15.409,15.393,48.73]
[1673456591113,89.74496728,15.409,15.394,20.0]
[1673456591739,68.68,15.409,15.399,20.0]
[1673456595023,68.68,15.409,15.4,1.92]
[1673456595234,20.0,15.409,15.4,1.92]
[1673456597861,68.68,15.409,15.4,1.92]
[1673456601109,20.0,15.409,15.4,1.92]
[1673456601950,20.0,15.409,15.4,18.92]
[1673456602579,48.69,15.408,15.4,18.92]
[1673456602892,20.0,15.407,15.4,18.92]
[1673456603423,20.0,15.407,15.398,114.2203]
[1673456603644,48.69,15.407,15.393,48.73]
[1673456603850,39.14496728,15.406,15.394,114.0959]
[1673456604050,48.69,15.406,15.394,114.0959]
[1673456604256,48.69,15.407,15.395,20.0]
[1673456604465,48.7,15.405,15.395,20.0]
[1673456604676,48.69,15.406,15.395,20.0]
[1673456604897,48.69,15.407,15.395,20.0]
[1673456605109,48.7,15.405,15.395,20.0]
[1673456605313,68.69,15.406,15.395,20.0]
[1673456605642,48.7,15.404,15.395,20.0]
[1673456605954,48.7,15.405,15.394,114.0959]
[1673456606377,48.7,15.405,15.395,17.0]
[1673456607232,19.17,15.4,15.391,48.74]
[1673456607417,19.17,15.4,15.389,20.0]
[1673456609115,19.17,15.4,15.39,48.74]
[1673456609429,19.17,15.4,15.389,68.75]
[1673456611321,19.17,15.4,15.39,1.92]
[1673456612589,19.17,15.4,15.389,68.75]
[1673456612777,19.17,15.4,15.389,20.0]
[1673456613198,68.71,15.399,15.388,119.238]
[1673456613407,70.63,15.399,15.388,119.238]
[1673456613613,89.77496728,15.399,15.385,20.0]
[1673456613830,95.00164728,15.399,15.385,20.0]
[1673456618258,68.71,15.399,15.386,1.92]
[1673456618454,68.71,15.399,15.386,67.68]
[1673456618662,68.71,15.399,15.387,20.0]
[1673456618892,68.71,15.399,15.388,18.92]
[1673456621722,48.72,15.398,15.388,18.92]
[1673456622237,48.71,15.399,15.388,18.92]
[1673456623408,20.0,15.398,15.388,18.92]
[1673456628134,20.0,15.398,15.387,20.0]
[1673456628329,48.72,15.397,15.387,20.0]
[1673456628544,20.0,15.396,15.387,20.0]
[1673456629180,20.0,15.398,15.387,20.0]
[1673456629601,48.72,15.397,15.387,20.0]
[1673456629815,20.0,15.396,15.387,20.0]
[1673456630135,20.0,15.396,15.386,20.0]
[1673456630321,20.0,15.396,15.386,68.76]
[1673456630534,20.0,15.396,15.386,20.0]
[1673456630745,20.0,15.398,15.386,20.0]
[1673456630960,20.0,15.398,15.387,1.92]
[1673456633822,20.0,15.398,15.388,20.0]
[1673456634146,20.0,15.398,15.389,1.92]
[1673456636228,20.0,15.398,15.385,115.6741]
[1673456636447,50.64,15.397,15.385,115.6741]
[1673456636642,20.0,15.396,15.385,115.6741]
[1673456637075,48.73,15.395,15.386,20.0]
[1673456637281,68.72,15.396,15.386,20.0]
[1673456637602,20.0,15.396,15.386,20.0]
[1673456637812,20.0,15.398,15.387,1.92]
[1673456638331,48.72,15.397,15.387,1.92]
[1673456638546,20.0,15.396,15.387,1.92]
[1673456639159,20.0,15.398,15.387,1.92]
[1673456639682,48.72,15.397,15.387,18.92]
[1673456639902,20.0,15.396,15.387,18.92]
[1673456640845,48.72,15.396,15.387,18.92]
[1673456641049,68.72,15.398,15.387,18.92]
[1673456641259,20.0,15.398,15.387,18.92]
[1673456641482,48.72,15.397,15.387,18.92]
[1673456641694,20.0,15.396,15.387,18.92]
[1673456642312,20.0,15.398,15.387,18.92]
[1673456642732,48.72,15.397,15.387,18.92]
[1673456642937,20.0,15.396,15.387,18.92]
[1673456643599,20.0,15.398,15.387,18.92]
[1673456644120,48.72,15.397,15.388,20.0]
[1673456644452,20.0,15.396,15.389,17.0]
[1673456644622,20.0,15.398,15.389,17.0]
[1673456647277,48.71,15.399,15.39,0.96]
[1673456647591,19.13,15.4,15.39,1.92]
[1673456647794,19.13,15.4,15.391,48.74]
[1673456648115,19.13,15.4,15.393,20.0]
[1673456648323,19.13,15.4,15.394,18.92]
[1673456649884,14.39,15.4,15.394,18.92]
[1673456653980,14.39,15.4,15.394,17.96]
[1673456654195,14.39,15.4,15.393,20.0]
[1673456655353,14.39,15.4,15.394,17.0]
[1673456663454,14.39,15.4,15.395,1.92]
[1673456665040,48.7,15.405,15.395,21.92]
[1673456665449,48.7,15.405,15.396,17.0]
[1673456665659,48.7,15.405,15.397,1.92]
[1673456665870,41.81166478,15.406,15.397,1.92]
[1673456666406,41.81166478,15.406,15.397,21.92]
[1673456666808,6.77336478,15.406,15.397,21.92]
[1673456667019,48.67,15.414,15.399,21.93627867]
[1673456667251,48.65,15.419,15.401,2.04598736]
[1673456667565,48.65,15.419,15.401,22.04598736]
[1673456667776,48.65,15.419,15.403,20.0]
[1673456667968,48.65,15.419,15.404,3.98132866]
[1673456668178,20.0,15.418,15.404,3.98132866]
[1673456668602,48.66,15.417,15.404,3.98132866]
[1673456668930,20.0,15.416,15.404,3.98132866]
[1673456669332,48.66,15.415,15.404,3.98132866]
[1673456671882,48.66,15.415,15.404,20.98132866]
[1673456673018,48.66,15.415,15.404,20.88463679]
[1673456673766,20.0,15.416,15.405,39.14496728]
[1673456673972,20.0,15.418,15.406,0.96]
[1673456674188,68.65,15.419,15.407,20.0]
[1673456674383,20.0,15.419,15.408,17.96]
[1673456674611,20.0,15.419,15.409,20.0]
[1673456674925,20.0,15.419,15.41,0.96]
[1673456675456,20.0,15.419,15.411,0.96]
[1673456675666,68.65,15.419,15.412,0.96]
[1673456675875,48.64,15.423,15.413,0.96]
[1673456676089,96.3614,15.429,15.413,0.96]
[1673456676090,48.64,15.424,15.413,0.96]
[1673456676411,48.62,15.428,15.414,0.96]
[1673456676806,48.62,15.428,15.415,0.96]
[1673456677144,20.0,15.427,15.416,0.96]
[1673456677332,20.0,15.427,15.412,119.1626]
[1673456677548,14.39,15.42,15.412,119.1626]
[1673456677755,14.39,15.42,15.408,109.7249]
[1673456677966,102.09015739,15.419,15.408,109.7249]
[1673456678180,53.44015739,15.419,15.408,109.7249]
[1673456678392,117.8609735,15.442,15.41,2.79312074]
[1673456678620,20.0,15.439,15.411,20.0]
[1673456678815,5.22668,15.438,15.412,2.79312074]
[1673456679032,71.95,15.43,15.412,2.79312074]
[1673456679225,28.68,15.43,15.414,2.79312074]
[1673456679442,48.62,15.429,15.415,1.92]
[1673456679650,48.62,15.429,15.415,50.58]
[1673456680088,20.0,15.428,15.415,1.92]
[1673456680404,14.39,15.42,15.413,20.0]
[1673456681667,14.39,15.42,15.411,20.0]
[1673456682710,14.39,15.42,15.412,1.92]
[1673456682924,14.39,15.42,15.412,18.92]
[1673456683876,48.63,15.425,15.413,20.0]
[1673456684179,14.29,15.43,15.414,22.42801687]
[1673456684384,14.29,15.43,15.415,37.0]
[1673456684595,14.29,15.43,15.417,20.0]
[1673456684800,14.29,15.43,15.418,2.71127523]
[1673456685118,14.29,15.43,15.418,52.32127523]
[1673456685319,14.29,15.43,15.419,17.0]
[1673456685534,48.62,15.429,15.419,1.75127523]
[1673456685767,48.62,15.429,15.418,1.75127523]
[1673456686492,20.0,15.428,15.418,1.75127523]
[1673456686896,20.0,15.428,15.419,1.92]
[1673456695044,48.63,15.427,15.419,1.92]
[1673456695257,20.0,15.426,15.419,1.92]
[1673456695883,20.0,15.428,15.419,1.92]
[1673456696098,20.0,15.428,15.412,48.67]
[1673456696303,14.39,15.42,15.412,48.67]
[1673456696526,14.39,15.42,15.412,20.0]
[1673456697460,14.39,15.42,15.413,1.92]
[1673456697898,14.39,15.42,15.413,18.92]
[1673456698921,14.39,15.42,15.41,48.68]
[1673456698922,20.0,15.419,15.401,20.0]
[1673456699140,68.65,15.419,15.401,135.4627]
[1673456699351,68.65,15.419,15.401,154.60766728]
[1673456699557,68.65,15.419,15.404,20.0]
[1673456700402,68.65,15.419,15.406,20.0]
[1673456700713,68.65,15.419,15.407,1.92]
[1673456702494,68.65,15.419,15.406,20.0]
[1673456709417,68.65,15.419,15.407,1.92]
[1673456710047,68.65,15.419,15.407,0.96]
[1673456710273,68.65,15.419,15.406,20.0]
[1673456712692,68.65,15.419,15.407,1.92]
[1673456714054,68.65,15.419,15.408,48.69]
[1673456714361,76.52,15.43,15.409,1.92]
[1673456714362,48.63,15.426,15.409,1.92]
[1673456714580,48.63,15.426,15.41,20.0]
[1673456714766,48.62,15.428,15.411,1.92]
[1673456714977,48.63,15.425,15.411,1.92]
[1673456715187,48.63,15.427,15.411,1.92]
[1673456715413,48.62,15.429,15.411,1.92]
[1673456715626,48.63,15.426,15.413,20.0]
[1673456715823,68.62,15.428,15.414,1.92]
[1673456716032,48.63,15.425,15.414,1.92]
[1673456716244,48.63,15.427,15.414,1.92]
[1673456716461,48.63,15.424,15.414,1.92]
[1673456716782,48.63,15.426,15.414,1.92]
[1673456716997,48.63,15.427,15.414,1.92]
[1673456717306,48.63,15.425,15.414,1.92]
[1673456717524,20.0,15.426,15.414,1.92]
[1673456718040,20.0,15.428,15.414,1.92]
[1673456718248,20.0,15.428,15.416,20.0]
[1673456718448,20.0,15.428,15.417,1.92]
[1673456718868,20.0,15.428,15.417,18.92]
[1673456720261,20.0,15.428,15.418,20.0]
[1673456720473,20.0,15.428,15.419,1.92]
[1673456720878,20.0,15.428,15.419,18.92]
[1673456723508,20.0,15.428,15.416,118.0618]
[1673456723717,48.63,15.427,15.416,118.0618]
[1673456723921,20.0,15.426,15.416,118.0618]
[1673456724134,20.0,15.426,15.417,20.0]
[1673456724761,20.0,15.428,15.418,1.92]
[1673456724977,20.0,15.428,15.418,18.92]
[1673456729506,20.0,15.428,15.418,1.92]
[1673456729933,20.0,15.428,15.418,18.92]
[1673456732778,20.0,15.428,15.416,118.0618]
[1673456732988,20.0,15.428,15.417,1.92]
[1673456733207,20.0,15.428,15.417,21.92]
[1673456733421,20.0,15.428,15.418,17.0]
[1673456733838,20.0,15.428,15.419,1.92]
[1673456746665,20.0,15.428,15.419,0.96]
[1673456746869,50.55,15.427,15.416,118.0618]
[1673456747067,20.0,15.426,15.416,118.0618]
[1673456747493,48.63,15.425,15.416,118.0618]
[1673456752220,48.63,15.425,15.408,110.5783]
[1673456752426,95.52,15.42,15.408,110.5783]
[1673456752646,20.0,15.419,15.408,110.5783]
[1673456752867,111.75345318,15.419,15.408,110.5783]
[1673456753073,43.10345318,15.418,15.408,110.5783]
[1673456753269,20.0,15.417,15.408,110.5783]
[1673456753483,87.80496728,15.417,15.408,110.5783]
[1673456753796,19.14496728,15.416,15.408,110.5783]
[1673456756956,19.14496728,15.416,15.409,20.0]
[1673456758111,20.0,15.417,15.41,1.92]
[1673456758313,20.0,15.419,15.41,1.92]